[Event "Titled Tuesday Blitz January 03 Late 2023"]
[White "Calcada, Lucas Galvan"]
[Black "Quinones Garcia, Santiago"]
[WhiteFideId "22746099"]
[BlackFideId "4408497"]
[WhiteElo "1739"]
[BlackElo "2248"]
[Result "1-0"]
[Round "04"]
[TimeControl "180+2"]
[Date "2023.01.03"]
[WhiteClock "0:00:26"]
[BlackClock "0:00:43"]

1. e4 {[%clk 0:02:52]}  e5 {[%clk 0:02:59]} 2. Nf3 {[%clk 0:02:51]}  Nc6 {[%clk 0:02:59]} 3. Bb5 {[%clk 0:02:41]}  a6 {[%clk 0:02:57]} 4. Ba4 {[%clk 0:02:40]}  Nf6 {[%clk 0:02:57]} 5. O-O {[%clk 0:02:40]}  Be7 {[%clk 0:02:56]} 6. Re1 {[%clk 0:02:37]}  b5 {[%clk 0:02:55]} 7. Bb3 {[%clk 0:02:37]}  O-O {[%clk 0:02:56]} 8. c3 {[%clk 0:02:36]}  d5 {[%clk 0:02:55]} 9. d4 {[%clk 0:02:33]}  Nxe4 {[%clk 0:02:51]} 10. dxe5 {[%clk 0:02:30]}  Be6 {[%clk 0:02:48]} 11. Nbd2 {[%clk 0:02:27]}  Nc5 {[%clk 0:02:46]} 12. Bc2 {[%clk 0:02:26]}  d4 {[%clk 0:02:45]} 13. Nb3 {[%clk 0:02:26]}  Nxb3 {[%clk 0:02:43]} 14. axb3 {[%clk 0:02:22]}  Bg4 {[%clk 0:02:40]} 15. Qd3 {[%clk 0:02:13]}  g6 {[%clk 0:02:38]} 16. Nxd4 {[%clk 0:02:07]}  Qe8 {[%clk 0:02:30]} 17. Bh6 {[%clk 0:01:55]}  Rd8 {[%clk 0:02:25]} 18. Bxf8 {[%clk 0:01:53]}  Bxf8 {[%clk 0:02:24]} 19. Qe4 {[%clk 0:01:49]}  Nxd4 {[%clk 0:02:22]} 20. cxd4 {[%clk 0:01:50]}  Be6 {[%clk 0:02:22]} 21. Qe3 {[%clk 0:01:41]}  Qc6 {[%clk 0:02:21]} 22. Be4 {[%clk 0:01:39]}  Bd5 {[%clk 0:02:10]} 23. Rec1 {[%clk 0:01:34]}  Qb7 {[%clk 0:02:10]} 24. Bxd5 {[%clk 0:01:33]}  Rxd5 {[%clk 0:02:10]} 25. Qe4 {[%clk 0:01:29]}  c6 {[%clk 0:02:07]} 26. h3 {[%clk 0:01:11]}  Qd7 {[%clk 0:02:06]} 27. Rxa6 {[%clk 0:01:08]}  Rxd4 {[%clk 0:02:06]} 28. Qxc6 {[%clk 0:01:06]}  Rd1+ {[%clk 0:02:03]} 29. Rxd1 {[%clk 0:01:05]}  Qxd1+ {[%clk 0:02:03]} 30. Kh2 {[%clk 0:01:06]}  Qxb3 {[%clk 0:02:02]} 31. e6 {[%clk 0:01:03]}  Qxb2 {[%clk 0:01:51]} 32. exf7+ {[%clk 0:01:01]}  Kg7 {[%clk 0:01:52]} 33. Qf3 {[%clk 0:00:44]}  b4 {[%clk 0:01:48]} 34. g3 {[%clk 0:00:44]}  Qd4 {[%clk 0:01:44]} 35. Kg2 {[%clk 0:00:43]}  Qc4 {[%clk 0:01:32]} 36. Rb6 {[%clk 0:00:41]}  Qxf7 {[%clk 0:01:25]} 37. Rb7 {[%clk 0:00:39]}  Be7 {[%clk 0:01:23]} 38. Qe4 {[%clk 0:00:38]}  Kf8 {[%clk 0:01:19]} 39. Rb8+ {[%clk 0:00:37]}  Kg7 {[%clk 0:01:18]} 40. Rb7 {[%clk 0:00:34]}  Kf8 {[%clk 0:01:18]} 41. Qd4 {[%clk 0:00:30]}  Kg8 {[%clk 0:01:14]} 42. Rb8+ {[%clk 0:00:28]}  Bf8 {[%clk 0:01:14]} 43. Qxb4 {[%clk 0:00:26]}  Qd5+ {[%clk 0:01:12]} 44. Kh2 {[%clk 0:00:26]}  Qf5 {[%clk 0:01:09]} 45. Rxf8+ {[%clk 0:00:25]}  Qxf8 {[%clk 0:01:09]} 46. Qxf8+ {[%clk 0:00:26]}  Kxf8 {[%clk 0:01:10]} 47. Kg2 {[%clk 0:00:27]}  Kf7 {[%clk 0:01:11]} 48. Kf3 {[%clk 0:00:27]}  Kf6 {[%clk 0:01:11]} 49. Kf4 {[%clk 0:00:26]}  h6 {[%clk 0:01:11]} 50. h4 {[%clk 0:00:26]}  Ke6 {[%clk 0:01:10]} 51. g4 {[%clk 0:00:24]}  Kf6 {[%clk 0:01:03]} 52. h5 {[%clk 0:00:24]}  gxh5 {[%clk 0:00:42]} 53. gxh5 {[%clk 0:00:25]}  Ke6 {[%clk 0:00:41]} 54. Ke4 {[%clk 0:00:23]}  Kf6 {[%clk 0:00:41]} 55. f4 {[%clk 0:00:23]}  Ke6 {[%clk 0:00:41]} 56. f5+ {[%clk 0:00:22]}  Kf6 {[%clk 0:00:41]} 57. Kf4 {[%clk 0:00:23]}  Kf7 {[%clk 0:00:41]} 58. Ke5 {[%clk 0:00:23]}  Ke7 {[%clk 0:00:42]} 59. f6+ {[%clk 0:00:23]}  Kf7 {[%clk 0:00:42]} 60. Kf5 {[%clk 0:00:24]}  Kf8 {[%clk 0:00:43]} 61. Kg6 {[%clk 0:00:25]}  Kg8 {[%clk 0:00:43]} 62. Kxh6 {[%clk 0:00:25]}  Kf7 {[%clk 0:00:43]} 63. Kg5 {[%clk 0:00:26]} 1-0


[Site "https://www.chess.com"]

[Event "Titled Tuesday Blitz January 03 Late 2023"]
[White "Gasparyan, David"]
[Black "Desideri, Ricardo Maruchi"]
[WhiteFideId "13311980"]
[BlackFideId "2110440"]
[WhiteElo "2142"]
[BlackElo "1959"]
[Result "1-0"]
[Round "04"]
[TimeControl "180+2"]
[Date "2023.01.03"]
[WhiteClock "0:01:48"]
[BlackClock "0:00:01"]

1. e4 {[%clk 0:03:00]}  c5 {[%clk 0:02:59]} 2. Nc3 {[%clk 0:03:00]}  e6 {[%clk 0:02:55]} 3. g3 {[%clk 0:02:55]}  b6 {[%clk 0:02:53]} 4. Bg2 {[%clk 0:02:55]}  Bb7 {[%clk 0:02:54]} 5. d3 {[%clk 0:02:55]}  Nf6 {[%clk 0:02:52]} 6. Nh3 {[%clk 0:02:55]}  d6 {[%clk 0:02:52]} 7. O-O {[%clk 0:02:54]}  Be7 {[%clk 0:02:52]} 8. f4 {[%clk 0:02:51]}  Qc7 {[%clk 0:02:48]} 9. Be3 {[%clk 0:02:33]}  a6 {[%clk 0:02:47]} 10. g4 {[%clk 0:02:30]}  h6 {[%clk 0:02:36]} 11. Nf2 {[%clk 0:02:27]}  Nbd7 {[%clk 0:02:10]} 12. d4 {[%clk 0:02:16]}  cxd4 {[%clk 0:02:07]} 13. Bxd4 {[%clk 0:02:17]}  e5 {[%clk 0:01:49]} 14. Be3 {[%clk 0:02:11]}  Rc8 {[%clk 0:01:34]} 15. g5 {[%clk 0:02:05]}  hxg5 {[%clk 0:01:32]} 16. fxg5 {[%clk 0:02:06]}  Nh5 {[%clk 0:01:29]} 17. Nd5 {[%clk 0:02:06]}  Bxd5 {[%clk 0:01:25]} 18. Qxd5 {[%clk 0:02:07]}  g6 {[%clk 0:00:37]} 19. Ng4 {[%clk 0:01:56]}  O-O {[%clk 0:00:19]} 20. Nh6+ {[%clk 0:01:55]}  Kh8 {[%clk 0:00:04]} 21. Rxf7 {[%clk 0:01:51]}  Rxf7 {[%clk 0:00:01]} 22. Qxf7 {[%clk 0:01:48]} 1-0


[Site "https://www.chess.com"]

[Event "Titled Tuesday Blitz January 03 Late 2023"]
[White "Gomes, Luiz Alexandre de Souza"]
[Black "Winterberg, Lukas"]
[WhiteFideId "2102790"]
[BlackFideId "24622702"]
[WhiteElo "2254"]
[BlackElo "2402"]
[Result "0-1"]
[Round "04"]
[TimeControl "180+2"]
[Date "2023.01.03"]
[WhiteClock "0:00:15"]
[BlackClock "0:01:19"]

1. e4 {[%clk 0:03:00]}  e6 {[%clk 0:02:57]} 2. d3 {[%clk 0:03:00]}  d5 {[%clk 0:02:57]} 3. Nd2 {[%clk 0:03:01]}  c5 {[%clk 0:02:53]} 4. Ngf3 {[%clk 0:03:01]}  Nc6 {[%clk 0:02:52]} 5. g3 {[%clk 0:03:02]}  g6 {[%clk 0:02:53]} 6. Bg2 {[%clk 0:03:02]}  Bg7 {[%clk 0:02:53]} 7. O-O {[%clk 0:03:03]}  Nge7 {[%clk 0:02:54]} 8. c3 {[%clk 0:03:03]}  O-O {[%clk 0:02:54]} 9. Qc2 {[%clk 0:03:03]}  b6 {[%clk 0:02:54]} 10. Re1 {[%clk 0:03:04]}  Ba6 {[%clk 0:02:53]} 11. Nf1 {[%clk 0:03:04]}  Qc7 {[%clk 0:02:51]} 12. Bg5 {[%clk 0:03:02]}  h6 {[%clk 0:02:50]} 13. Bf4 {[%clk 0:03:00]}  e5 {[%clk 0:02:47]} 14. exd5 {[%clk 0:02:57]}  Nxd5 {[%clk 0:02:35]} 15. Bd2 {[%clk 0:02:56]}  Rad8 {[%clk 0:02:32]} 16. Rad1 {[%clk 0:02:56]}  Rfe8 {[%clk 0:02:29]} 17. Bc1 {[%clk 0:02:55]}  f5 {[%clk 0:02:28]} 18. Nh4 {[%clk 0:02:46]}  Kh7 {[%clk 0:02:28]} 19. Ne3 {[%clk 0:02:03]}  Nxe3 {[%clk 0:02:19]} 20. Rxe3 {[%clk 0:02:03]}  Rd7 {[%clk 0:02:17]} 21. Qa4 {[%clk 0:01:48]}  Bb7 {[%clk 0:02:17]} 22. Rde1 {[%clk 0:01:46]}  Red8 {[%clk 0:02:16]} 23. Bf1 {[%clk 0:01:32]}  Ne7 {[%clk 0:02:13]} 24. Nf3 {[%clk 0:01:08]}  Nd5 {[%clk 0:02:09]} 25. R3e2 {[%clk 0:01:07]}  Nxc3 {[%clk 0:02:09]} 26. bxc3 {[%clk 0:01:06]}  Bxf3 {[%clk 0:02:09]} 27. Re3 {[%clk 0:01:03]}  Bc6 {[%clk 0:02:07]} 28. Qh4 {[%clk 0:01:02]}  Bb7 {[%clk 0:01:57]} 29. Rxe5 {[%clk 0:01:01]}  Bxe5 {[%clk 0:01:50]} 30. Qxh6+ {[%clk 0:01:01]}  Kg8 {[%clk 0:01:51]} 31. Qxg6+ {[%clk 0:00:59]}  Bg7 {[%clk 0:01:48]} 32. Re6 {[%clk 0:00:36]}  Re7 {[%clk 0:01:39]} 33. Bf4 {[%clk 0:00:34]}  Rxe6 {[%clk 0:01:34]} 34. Qxe6+ {[%clk 0:00:32]}  Qf7 {[%clk 0:01:34]} 35. Qe3 {[%clk 0:00:26]}  Qd5 {[%clk 0:01:34]} 36. f3 {[%clk 0:00:20]}  Qxf3 {[%clk 0:01:34]} 37. Qe6+ {[%clk 0:00:15]}  Kh8 {[%clk 0:01:34]} 38. Qxf5 {[%clk 0:00:16]}  Qh1+ {[%clk 0:01:27]} 39. Kf2 {[%clk 0:00:16]}  Qxh2+ {[%clk 0:01:28]} 40. Ke1 {[%clk 0:00:15]}  Bf3 {[%clk 0:01:19]} 0-1


[Site "https://www.chess.com"]

[Event "Titled Tuesday Blitz January 03 Late 2023"]
[White "Sailer, Mike"]
[Black "marik_spb"]
[WhiteFideId "2012901"]
[WhiteElo "2109"]
[BlackElo "2401"]
[Result "0-1"]
[Round "04"]
[TimeControl "180+2"]
[Date "2023.01.03"]
[WhiteClock "0:00:06"]
[BlackClock "0:00:08"]

1. d4 {[%clk 0:03:00]}  Nf6 {[%clk 0:02:59]} 2. Bf4 {[%clk 0:03:00]}  d5 {[%clk 0:02:58]} 3. e3 {[%clk 0:03:01]}  e6 {[%clk 0:02:55]} 4. Nf3 {[%clk 0:03:01]}  Bd6 {[%clk 0:02:56]} 5. Bg3 {[%clk 0:03:01]}  O-O {[%clk 0:02:56]} 6. Bd3 {[%clk 0:03:02]}  Ne4 {[%clk 0:02:56]} 7. Nbd2 {[%clk 0:03:01]}  f5 {[%clk 0:02:53]} 8. Bxd6 {[%clk 0:03:01]}  cxd6 {[%clk 0:02:50]} 9. O-O {[%clk 0:02:56]}  b6 {[%clk 0:02:48]} 10. c4 {[%clk 0:02:56]}  Nxd2 {[%clk 0:02:47]} 11. Qxd2 {[%clk 0:02:56]}  Bb7 {[%clk 0:02:45]} 12. cxd5 {[%clk 0:02:55]}  Bxd5 {[%clk 0:02:46]} 13. Rfc1 {[%clk 0:02:53]}  Nd7 {[%clk 0:02:44]} 14. a4 {[%clk 0:02:50]}  Nf6 {[%clk 0:02:43]} 15. a5 {[%clk 0:02:50]}  Rc8 {[%clk 0:02:41]} 16. axb6 {[%clk 0:02:50]}  Qxb6 {[%clk 0:02:35]} 17. Ra6 {[%clk 0:02:46]}  Qb8 {[%clk 0:02:35]} 18. Rca1 {[%clk 0:02:42]}  Rf7 {[%clk 0:02:30]} 19. Ne1 {[%clk 0:02:29]}  Rb7 {[%clk 0:02:28]} 20. Qa5 {[%clk 0:02:27]}  Rxb2 {[%clk 0:02:12]} 21. Rxa7 {[%clk 0:02:24]}  Ng4 {[%clk 0:02:10]} 22. Qa4 {[%clk 0:01:55]}  Bc6 {[%clk 0:01:23]} 23. Qc4 {[%clk 0:01:53]}  Bd5 {[%clk 0:01:15]} 24. Qa4 {[%clk 0:01:51]}  Nf6 {[%clk 0:00:51]} 25. f3 {[%clk 0:01:27]}  Qb3 {[%clk 0:00:49]} 26. Qxb3 {[%clk 0:01:19]}  Rxb3 {[%clk 0:00:49]} 27. Re7 {[%clk 0:01:03]}  Rb7 {[%clk 0:00:49]} 28. Rxb7 {[%clk 0:01:03]}  Bxb7 {[%clk 0:00:50]} 29. Ra7 {[%clk 0:00:59]}  Bd5 {[%clk 0:00:50]} 30. Ra6 {[%clk 0:00:59]}  Rd8 {[%clk 0:00:39]} 31. Kf2 {[%clk 0:00:56]}  Kf7 {[%clk 0:00:38]} 32. Ke2 {[%clk 0:00:55]}  Ke7 {[%clk 0:00:39]} 33. Kd2 {[%clk 0:00:55]}  Rb8 {[%clk 0:00:38]} 34. Kc2 {[%clk 0:00:39]}  Nd7 {[%clk 0:00:34]} 35. Ra7 {[%clk 0:00:38]}  h6 {[%clk 0:00:29]} 36. e4 {[%clk 0:00:35]}  fxe4 {[%clk 0:00:28]} 37. fxe4 {[%clk 0:00:36]}  Rb7 {[%clk 0:00:27]} 38. Rxb7 {[%clk 0:00:33]}  Bxb7 {[%clk 0:00:28]} 39. Nf3 {[%clk 0:00:28]}  g5 {[%clk 0:00:27]} 40. Kc3 {[%clk 0:00:21]}  Nf6 {[%clk 0:00:23]} 41. Nd2 {[%clk 0:00:21]}  Ng4 {[%clk 0:00:20]} 42. Nf1 {[%clk 0:00:16]}  Nf2 {[%clk 0:00:16]} 43. Bc2 {[%clk 0:00:14]}  Nxe4+ {[%clk 0:00:15]} 44. Bxe4 {[%clk 0:00:14]}  Bxe4 {[%clk 0:00:16]} 45. g3 {[%clk 0:00:14]}  Kf6 {[%clk 0:00:17]} 46. Ne3 {[%clk 0:00:13]}  Bb7 {[%clk 0:00:15]} 47. Kc4 {[%clk 0:00:12]}  Ba6+ {[%clk 0:00:13]} 48. Kb4 {[%clk 0:00:12]}  h5 {[%clk 0:00:13]} 49. Ka5 {[%clk 0:00:13]}  Bd3 {[%clk 0:00:13]} 50. Kb6 {[%clk 0:00:13]}  e5 {[%clk 0:00:14]} 51. d5 {[%clk 0:00:09]}  e4 {[%clk 0:00:12]} 52. Kc6 {[%clk 0:00:06]}  Ke5 {[%clk 0:00:13]} 53. Kd7 {[%clk 0:00:06]}  Bb5+ {[%clk 0:00:11]} 54. Ke7 {[%clk 0:00:07]}  Kd4 {[%clk 0:00:09]} 55. Nf5+ {[%clk 0:00:07]}  Kxd5 {[%clk 0:00:09]} 56. Ne3+ {[%clk 0:00:06]}  Ke5 {[%clk 0:00:08]} 0-1


[Site "https://www.chess.com"]

[Event "Titled Tuesday Blitz January 03 Late 2023"]
[White "Zilleruelo Irizarry, Diego"]
[Black "Mathur, Rithwik"]
[WhiteFideId "3101460"]
[BlackFideId "30913667"]
[WhiteElo "2135"]
[BlackElo "2111"]
[Result "1-0"]
[Round "04"]
[TimeControl "180+2"]
[Date "2023.01.03"]
[WhiteClock "0:00:43"]
[BlackClock "0:00:01"]

1. e4 {[%clk 0:03:00]}  e5 {[%clk 0:02:50]} 2. Nf3 {[%clk 0:03:00]}  Nc6 {[%clk 0:02:50]} 3. Bb5 {[%clk 0:03:00]}  a6 {[%clk 0:02:49]} 4. Ba4 {[%clk 0:03:01]}  Nf6 {[%clk 0:02:43]} 5. O-O {[%clk 0:03:00]}  Be7 {[%clk 0:02:40]} 6. Re1 {[%clk 0:03:00]}  b5 {[%clk 0:02:32]} 7. Bb3 {[%clk 0:03:01]}  O-O {[%clk 0:02:33]} 8. a4 {[%clk 0:03:00]}  b4 {[%clk 0:02:29]} 9. a5 {[%clk 0:02:55]}  Bb7 {[%clk 0:02:09]} 10. c3 {[%clk 0:02:50]}  d5 {[%clk 0:01:56]} 11. exd5 {[%clk 0:02:48]}  Nxd5 {[%clk 0:01:57]} 12. Nxe5 {[%clk 0:02:48]}  Nxe5 {[%clk 0:01:32]} 13. Rxe5 {[%clk 0:02:49]}  Bd6 {[%clk 0:01:25]} 14. Rxd5 {[%clk 0:02:40]}  Bxd5 {[%clk 0:01:24]} 15. Bxd5 {[%clk 0:02:41]}  Bxh2+ {[%clk 0:01:25]} 16. Kxh2 {[%clk 0:02:42]}  Qxd5 {[%clk 0:01:26]} 17. d4 {[%clk 0:02:38]}  c5 {[%clk 0:01:14]} 18. Be3 {[%clk 0:02:37]}  cxd4 {[%clk 0:01:09]} 19. Bxd4 {[%clk 0:02:32]}  Rfe8 {[%clk 0:01:07]} 20. Nd2 {[%clk 0:02:28]}  bxc3 {[%clk 0:01:00]} 21. bxc3 {[%clk 0:02:28]}  Rad8 {[%clk 0:01:00]} 22. Qf3 {[%clk 0:02:23]}  Qxf3 {[%clk 0:00:55]} 23. Nxf3 {[%clk 0:02:24]}  f6 {[%clk 0:00:56]} 24. Rb1 {[%clk 0:02:22]}  Rd5 {[%clk 0:00:54]} 25. Bb6 {[%clk 0:02:12]}  Rb8 {[%clk 0:00:52]} 26. c4 {[%clk 0:02:11]}  Rxa5 {[%clk 0:00:47]} 27. Bxa5 {[%clk 0:02:07]}  Rxb1 {[%clk 0:00:48]} 28. c5 {[%clk 0:02:08]}  Rc1 {[%clk 0:00:46]} 29. Bb6 {[%clk 0:02:05]}  Kf7 {[%clk 0:00:30]} 30. Nd4 {[%clk 0:02:02]}  Ke7 {[%clk 0:00:21]} 31. c6 {[%clk 0:01:52]}  g6 {[%clk 0:00:20]} 32. Kg3 {[%clk 0:01:42]}  Rc4 {[%clk 0:00:16]} 33. f3 {[%clk 0:01:38]}  a5 {[%clk 0:00:16]} 34. c7 {[%clk 0:01:32]}  a4 {[%clk 0:00:14]} 35. Nb5 {[%clk 0:01:25]}  Kd7 {[%clk 0:00:11]} 36. Na7 {[%clk 0:01:06]}  a3 {[%clk 0:00:05]} 37. c8=Q+ {[%clk 0:01:03]}  Rxc8 {[%clk 0:00:03]} 38. Nxc8 {[%clk 0:01:04]}  Kxc8 {[%clk 0:00:03]} 39. Bd4 {[%clk 0:01:04]}  f5 {[%clk 0:00:03]} 40. Kf4 {[%clk 0:01:05]}  Kd7 {[%clk 0:00:03]} 41. Kg5 {[%clk 0:01:05]}  Ke8 {[%clk 0:00:02]} 42. Kh6 {[%clk 0:01:05]}  Kf7 {[%clk 0:00:01]} 43. Kxh7 {[%clk 0:01:05]}  g5 {[%clk 0:00:01]} 44. Kh6 {[%clk 0:01:04]}  g4 {[%clk 0:00:02]} 45. f4 {[%clk 0:01:02]}  Ke6 {[%clk 0:00:01]} 46. Kg6 {[%clk 0:00:58]}  Kd5 {[%clk 0:00:02]} 47. Be5 {[%clk 0:00:58]}  Ke4 {[%clk 0:00:02]} 48. Kg5 {[%clk 0:00:54]}  a2 {[%clk 0:00:02]} 49. g3 {[%clk 0:00:45]}  Kf3 {[%clk 0:00:01]} 50. Kxf5 {[%clk 0:00:45]}  Kxg3 {[%clk 0:00:01]} 51. Kg5 {[%clk 0:00:45]}  Kf3 {[%clk 0:00:01]} 52. f5 {[%clk 0:00:44]}  g3 {[%clk 0:00:02]} 53. f6 {[%clk 0:00:43]}  g2 {[%clk 0:00:02]} 54. f7 {[%clk 0:00:44]}  g1=Q+ {[%clk 0:00:02]} 55. Kf6 {[%clk 0:00:44]}  a1=Q {[%clk 0:00:01]} 56. f8=Q {[%clk 0:00:43]} 1-0


[Site "https://www.chess.com"]

[Event "Titled Tuesday Blitz January 03 Late 2023"]
[White "Liu, Casper"]
[Black "Mitrovic, Darko R"]
[WhiteFideId "1454153"]
[BlackFideId "927023"]
[WhiteElo "2278"]
[BlackElo "2220"]
[Result "1-0"]
[Round "04"]
[TimeControl "180+2"]
[Date "2023.01.03"]
[WhiteClock "0:01:06"]
[BlackClock "0:00:04"]

1. c3 {[%clk 0:02:53]}  a6 {[%clk 0:02:55]} 2. e4 {[%clk 0:02:52]}  b5 {[%clk 0:02:55]} 3. d4 {[%clk 0:02:53]}  h5 {[%clk 0:02:53]} 4. Bd3 {[%clk 0:02:51]}  c6 {[%clk 0:02:52]} 5. Nf3 {[%clk 0:02:50]}  e6 {[%clk 0:02:52]} 6. a4 {[%clk 0:02:49]}  Bb7 {[%clk 0:02:49]} 7. O-O {[%clk 0:02:47]}  d5 {[%clk 0:02:46]} 8. e5 {[%clk 0:02:46]}  Nh6 {[%clk 0:02:28]} 9. Ng5 {[%clk 0:02:42]}  g6 {[%clk 0:01:44]} 10. f4 {[%clk 0:02:40]}  Nf5 {[%clk 0:01:37]} 11. h3 {[%clk 0:02:32]}  c5 {[%clk 0:01:04]} 12. g4 {[%clk 0:02:24]}  hxg4 {[%clk 0:01:02]} 13. hxg4 {[%clk 0:02:25]}  Nh6 {[%clk 0:00:55]} 14. f5 {[%clk 0:02:21]}  gxf5 {[%clk 0:00:51]} 15. gxf5 {[%clk 0:02:22]}  Nxf5 {[%clk 0:00:35]} 16. Bxf5 {[%clk 0:02:21]}  exf5 {[%clk 0:00:35]} 17. Rxf5 {[%clk 0:02:22]}  Bc8 {[%clk 0:00:13]} 18. Rf6 {[%clk 0:01:38]}  Be6 {[%clk 0:00:12]} 19. Nxe6 {[%clk 0:01:31]}  fxe6 {[%clk 0:00:12]} 20. Qg4 {[%clk 0:01:31]}  Qd7 {[%clk 0:00:11]} 21. Bg5 {[%clk 0:01:29]}  Be7 {[%clk 0:00:10]} 22. Rxe6 {[%clk 0:01:28]}  O-O {[%clk 0:00:10]} 23. Bxe7+ {[%clk 0:01:07]}  Kf7 {[%clk 0:00:04]} 24. Qf5+ {[%clk 0:01:06]}  Ke8 {[%clk 0:00:04]} 25. Qxf8# {[%clk 0:01:06]} 1-0


[Site "https://www.chess.com"]

[Event "Titled Tuesday Blitz January 03 Late 2023"]
[White "Dias, Joao Batista"]
[Black "Prydun, Andriy"]
[WhiteFideId "2108240"]
[BlackFideId "14145898"]
[WhiteElo "1796"]
[BlackElo "2134"]
[Result "0-1"]
[Round "04"]
[TimeControl "180+2"]
[Date "2023.01.03"]
[WhiteClock "0:00:52"]
[BlackClock "0:00:16"]

1. e4 {[%clk 0:02:57]}  c6 {[%clk 0:01:02]} 2. d4 {[%clk 0:02:55]}  d5 {[%clk 0:01:03]} 3. e5 {[%clk 0:02:55]}  Bf5 {[%clk 0:01:03]} 4. c3 {[%clk 0:02:55]}  a5 {[%clk 0:00:59]} 5. Bd3 {[%clk 0:02:55]}  Bxd3 {[%clk 0:00:59]} 6. Qxd3 {[%clk 0:02:55]}  e6 {[%clk 0:00:59]} 7. Ne2 {[%clk 0:02:55]}  a4 {[%clk 0:00:59]} 8. a3 {[%clk 0:02:54]}  Qa5 {[%clk 0:00:55]} 9. O-O {[%clk 0:02:52]}  Qb5 {[%clk 0:00:55]} 10. f4 {[%clk 0:02:51]}  g6 {[%clk 0:00:42]} 11. Qxb5 {[%clk 0:02:43]}  cxb5 {[%clk 0:00:43]} 12. Nd2 {[%clk 0:02:40]}  Kd7 {[%clk 0:00:42]} 13. Nf3 {[%clk 0:02:39]}  h6 {[%clk 0:00:41]} 14. g4 {[%clk 0:02:37]}  Ne7 {[%clk 0:00:39]} 15. h3 {[%clk 0:02:35]}  Kc6 {[%clk 0:00:38]} 16. Kg2 {[%clk 0:02:34]}  Nd7 {[%clk 0:00:38]} 17. Bd2 {[%clk 0:02:31]}  Nb6 {[%clk 0:00:38]} 18. Rab1 {[%clk 0:02:26]}  Nc4 {[%clk 0:00:38]} 19. Bc1 {[%clk 0:02:24]}  Rg8 {[%clk 0:00:35]} 20. Ng3 {[%clk 0:02:18]}  Re8 {[%clk 0:00:26]} 21. h4 {[%clk 0:02:12]}  Bg7 {[%clk 0:00:24]} 22. Kf2 {[%clk 0:02:11]}  Ref8 {[%clk 0:00:24]} 23. Ke2 {[%clk 0:02:10]}  f6 {[%clk 0:00:22]} 24. b3 {[%clk 0:02:01]}  axb3 {[%clk 0:00:21]} 25. Rxb3 {[%clk 0:02:01]}  f5 {[%clk 0:00:21]} 26. g5 {[%clk 0:02:00]}  h5 {[%clk 0:00:21]} 27. Be3 {[%clk 0:01:56]}  Ra8 {[%clk 0:00:22]} 28. Rfb1 {[%clk 0:01:55]}  Ra5 {[%clk 0:00:22]} 29. Bc1 {[%clk 0:01:53]}  Rga8 {[%clk 0:00:22]} 30. Nf1 {[%clk 0:01:48]}  Bf8 {[%clk 0:00:22]} 31. N1d2 {[%clk 0:01:47]}  Nc8 {[%clk 0:00:19]} 32. Ne1 {[%clk 0:01:40]}  N8b6 {[%clk 0:00:16]} 33. Nd3 {[%clk 0:01:40]}  Bxa3 {[%clk 0:00:17]} 34. Nb4+ {[%clk 0:01:30]}  Bxb4 {[%clk 0:00:17]} 35. Rxb4 {[%clk 0:01:23]}  Nxd2 {[%clk 0:00:17]} 36. Bxd2 {[%clk 0:01:22]}  Nc4 {[%clk 0:00:18]} 37. Kd3 {[%clk 0:01:20]}  Ra2 {[%clk 0:00:17]} 38. Be1 {[%clk 0:01:18]}  R8a5 {[%clk 0:00:18]} 39. R4b3 {[%clk 0:01:16]}  Rh2 {[%clk 0:00:17]} 40. Rd1 {[%clk 0:01:02]}  Raa2 {[%clk 0:00:17]} 41. Rdb1 {[%clk 0:00:52]}  Rh3+ {[%clk 0:00:16]} 0-1


[Site "https://www.chess.com"]

[Event "Titled Tuesday Blitz January 03 Late 2023"]
[White "Cruz Gomez, Miguel Angel"]
[Black "Gonzalez, Francisco Silva"]
[WhiteFideId "5137160"]
[BlackFideId "1512285"]
[WhiteElo "1950"]
[BlackElo "2021"]
[Result "0-1"]
[Round "04"]
[TimeControl "180+2"]
[Date "2023.01.03"]
[WhiteClock "0:00:11"]
[BlackClock "0:01:30"]

1. Nf3 {[%clk 0:03:00]}  d5 {[%clk 0:02:57]} 2. c4 {[%clk 0:03:01]}  e6 {[%clk 0:02:56]} 3. d4 {[%clk 0:03:00]}  Nf6 {[%clk 0:02:56]} 4. g3 {[%clk 0:03:01]}  a6 {[%clk 0:02:54]} 5. Qc2 {[%clk 0:02:56]}  dxc4 {[%clk 0:02:53]} 6. Qxc4 {[%clk 0:02:57]}  b5 {[%clk 0:02:54]} 7. Qc2 {[%clk 0:02:56]}  Bb7 {[%clk 0:02:54]} 8. Bg2 {[%clk 0:02:54]}  Nbd7 {[%clk 0:02:54]} 9. Bg5 {[%clk 0:02:32]}  c5 {[%clk 0:02:52]} 10. Bxf6 {[%clk 0:02:23]}  Qxf6 {[%clk 0:02:51]} 11. dxc5 {[%clk 0:02:22]}  Bxc5 {[%clk 0:02:51]} 12. Nbd2 {[%clk 0:02:20]}  Rc8 {[%clk 0:02:51]} 13. Qd3 {[%clk 0:02:02]}  Qxb2 {[%clk 0:02:48]} 14. O-O {[%clk 0:02:02]}  Rd8 {[%clk 0:02:45]} 15. Rab1 {[%clk 0:01:37]}  Qxa2 {[%clk 0:02:40]} 16. Rfc1 {[%clk 0:01:30]}  O-O {[%clk 0:02:36]} 17. Ng5 {[%clk 0:01:28]}  Nf6 {[%clk 0:02:35]} 18. Qc2 {[%clk 0:01:19]}  Bxf2+ {[%clk 0:02:28]} 19. Kxf2 {[%clk 0:01:18]}  Rxd2 {[%clk 0:02:28]} 20. Qxa2 {[%clk 0:01:17]}  Rxa2 {[%clk 0:02:27]} 21. Bxb7 {[%clk 0:01:17]}  h6 {[%clk 0:02:24]} 22. Nf3 {[%clk 0:01:17]}  Rb8 {[%clk 0:02:18]} 23. Rc8+ {[%clk 0:01:11]}  Rxc8 {[%clk 0:02:17]} 24. Bxc8 {[%clk 0:01:12]}  Kf8 {[%clk 0:02:17]} 25. Bb7 {[%clk 0:01:00]}  Ke7 {[%clk 0:02:16]} 26. h3 {[%clk 0:00:56]}  Kd6 {[%clk 0:02:15]} 27. Rd1+ {[%clk 0:00:55]}  Kc7 {[%clk 0:02:14]} 28. Ba8 {[%clk 0:00:52]}  b4 {[%clk 0:02:10]} 29. Nd4 {[%clk 0:00:44]}  a5 {[%clk 0:02:07]} 30. Bf3 {[%clk 0:00:37]}  a4 {[%clk 0:02:06]} 31. Rc1+ {[%clk 0:00:36]}  Kd6 {[%clk 0:02:04]} 32. Rc4 {[%clk 0:00:31]}  b3 {[%clk 0:02:03]} 33. Rb4 {[%clk 0:00:26]}  Kc5 {[%clk 0:02:02]} 34. Ke3 {[%clk 0:00:21]}  e5 {[%clk 0:01:57]} 35. Rb5+ {[%clk 0:00:20]}  Kc4 {[%clk 0:01:48]} 36. Rxe5 {[%clk 0:00:20]}  Kb4 {[%clk 0:01:43]} 37. Rb5+ {[%clk 0:00:19]}  Kc4 {[%clk 0:01:43]} 38. Rb8 {[%clk 0:00:18]}  b2 {[%clk 0:01:42]} 39. Nf5 {[%clk 0:00:13]}  a3 {[%clk 0:01:39]} 40. Nd6+ {[%clk 0:00:14]}  Kc5 {[%clk 0:01:39]} 41. Ne4+ {[%clk 0:00:14]}  Nxe4 {[%clk 0:01:35]} 42. Bxe4 {[%clk 0:00:14]}  Ra1 {[%clk 0:01:35]} 43. Bc2 {[%clk 0:00:14]}  Rc1 {[%clk 0:01:33]} 44. Bd3 {[%clk 0:00:10]}  a2 {[%clk 0:01:31]} 45. Rb5+ {[%clk 0:00:10]}  Kc6 {[%clk 0:01:30]} 46. Ra5 {[%clk 0:00:11]}  a1=Q {[%clk 0:01:30]} 0-1


[Site "https://www.chess.com"]